Workbook

Sheet Мониторинг
A1: Показатели ежемесячного мониторинга за | F1: январь 2017 года | J1: (нарастающим итогом с начала года)
F2: (период с начала года, например, январь-апрель 2017 года)
A3: о реализации мероприятий федеральной целевой программы "Повышение безопасности дорожного движения в 2013-2020 годах", финансируемых за счет средств федерального бюджета в 2017 году
C4: Государственный заказчик: | E4: Министерство транспорта Российской Федерации
E5: (государственный заказчик)
P6: тыс. рублей
A7: № п/п | B7: Мероприятие | C7: Объем средств федерального бюджета по постановле-нию Прави-тельства РФ от 03.10.2013 № 864 (в ред. от 11.10.2016 № 1031) | D7: Объем доведенных лимитов бюджетных обязательств по Феде-ральному закону от 19.12.2016 № 415-ФЗ | E7: Процедура заключения государственного контракта | J7: Ход исполнения обязательств по государственному контракту с начала года | O7: Остаток лимитов бюджетных обязательств (столбец 4 - столбец 9) | P7: Этап выполнения мероприятия
E8: Информация о наличии технических заданий (есть/нет) | F8: Информация о размещении конкурсной документации (номер, дата) | G8: №, дата государственного контракта, наименования организаций-исполнителей | H8: Стоимость работ действующего государственного контракта
H9: Всего | I9: в т.ч. предумотрено на 2017 год | J9: Оплаченный аванс | K9: Принято работ по актам выполненных работ | L9: Всего оплачено по контракту (кассовые расходы с начала года) | M9: Остаток средств, подлежащих перечислению (столбец 9 - столбец 12) | N9: Срок исполнения, предусмотрен-ный контрактом
A10: 1 | B10: 2 | C10: 3 | D10: 4 | E10: 5 | F10: 6 | G10: 7 | H10: 8 | I10: 9 | J10: 10 | K10: 11 | L10: 12 | M10: 13 | N10: 14 | O10: 15 | P10: 16
B11: ВСЕГО (НИОКР, прочие нужды) | C11: =SUM(C12,C17) -> 210914.2 | D11: =SUM(D12,D17) -> 131395.4 | H11: =SUM(H12,H17) -> 0 | I11: =I12+I17 -> 0 | J11: =J12+J17 -> 0 | K11: =K12+K17 -> 0 | L11: =L12+L17 -> 0 | M11: =M12+M17 -> 0 | O11: =O12+O17 -> 131395.4
B12: НИОКР, всего | C12: =SUM(C14:C16) -> 26473.6 | D12: =SUM(D14:D16) -> 17360.7 | H12: =SUM(H14:H16) -> 0 | I12: =SUM(I14:I16) -> 0 | J12: =SUM(J14:J16) -> 0 | K12: =SUM(K14:K16) -> 0 | L12: =SUM(L14:L16) -> 0 | M12: =I12-L12 -> 0 | O12: =D12-I12 -> 17360.7
B13: в том числе:
A14: 1 | B14: 2/2 «Проведение научных исследований, разработка условий и требований по нормативно-правовому обеспечению внедрения и развития сервисов интеллектуальных транспортных систем в сфере обеспечения безопасности дорожного движения, повышения качества функционирования региональных транспортных систем и работы автомобильного транспорта» | C14: 10000 | D14: 6851.3 | M14: =I14-L14 -> 0 | O14: =D14-I14 -> 6851.3
A15: 2 | B15: 5/1 «Проведение научных исследований, направленных на разработку современных методов организации дорожного движения, в том числе основанных на исследовании влияния режимов движения транспортных потоков на безопасность дорожного движения» | C15: 10000 | D15: 6927.4 | M15: =I15-L15 -> 0 | O15: =D15-I15 -> 6927.4
A16: 3 | B16: 7/5 «Проведение научных исследований в области применения программных продуктов математического моделирования транспортных потоков при разработке комплексных схем организации дорожного движения, проектов организации дорожного движения, а также проектов автоматизированных систем управления дорожным движением. Разработка предложений по нормативному и методическому обеспечению использования программных продуктов при проектировании в сфере организации дорожного движения» | C16: 6473.6 | D16: 3582 | M16: 0 | O16: 3582
B17: Прочие нужды, всего | C17: =SUM(C19:C25) -> 184440.6 | D17: =SUM(D19:D25) -> 114034.7 | H17: =SUM(H19:H22,H24:H25) -> 0 | I17: =SUM(I19:I22,I24:I25) -> 0 | J17: =SUM(J19:J22,J24:J25) -> 0 | K17: =SUM(K19:K22,K24:K25) -> 0 | L17: =SUM(L19:L22,L24:L25) -> 0 | M17: =I17-L17 -> 0 | O17: =D17-I17 -> 114034.7
B18: в том числе:
A19: 1 | B19: 2/13 «Подготовка и издание учебно-методических и наглядных пособий, фильмов и других материалов, а также издание комплектов учебно-методических материалов по курсу дистанционного обучения специалистов, ответственных за обеспечение безопасного функционирования автомобильного транспорта» | C19: 10000 | D19: 3376 | M19: =I19-L19 -> 0 | O19: =D19-I19 -> 3376
A20: 2 | B20: 2/14 «Материально-техническое обеспечение федерального бюджетного учреждения "Агентство автомобильного транспорта" (оборудование, программные комплексы) в целях подготовки водителей, повышения квалификации инженерно-технического и руководящего состава автотранспортных предприятий, а также обучения контрольно-надзорных органов в сфере автомобильного транспорта, в том числе: создание аппаратно-программного комплекса организационно-методического обеспечения процессов подготовки водителей, инженерно-технического и руководящего состава автотранспортных предприятий, контроля и учета выдачи разрешительных документов» | C20: 35440.6 | D20: 14360 | M20: =I20-L20 -> 0 | O20: =D20-I20 -> 14360
A21: 3 | B21: 2/15 «Ежегодное проведение всероссийского конкурса профессионального мастерства водителей транспортных средств, проведение комплексной информационно-пропагандистской кампании, направленной на водителей коммерческого, грузового и пассажирского транспорта, в целях повышения их ответственности и культуры поведения на дороге, подготовка тематических телепрограмм» | C21: 30000 | D21: 19419.6 | M21: 0 | O21: 19419.6
A22: 4 | B22: 5/11 «Создание аппаратно-программного комплекса автоматизированного учета и предоставления тахографической информации для осуществления контрольно-надзорной деятельности в области организации движения транспортных средств, соблюдения маршрута движения, режима труда и отдыха водителей» | C22: 80000 | D22: 55468.7 | M22: 0 | O22: 55468.7
A23: 5 | B23: 5/12 «Проведение специализированных обучающих конференций и семинаров, посвященных вопросам совершенствования организации дорожного движения, освещение проблем организации дорожного движения в средствах массовой информации» | C23: 20000 | D23: 15225 | M23: 0 | O23: 15225
A24: 6 | B24: 5/13 «Подготовка ежегодных аналитических обзоров и предложений по совершенствованию законодательного и нормативно-правового регулирования в сфере обеспечения безопасности автомобильных перевозок пассажиров и грузов» | C24: 2000 | D24: 1522.7 | M24: 0 | O24: 1522.7
A25: 7 | B25: 7/9 «Подготовка и периодическое повышение квалификации работников Госавтоинспекции и управлений госавтодорнадзора Ространснадзора по осуществлению контрольно-надзорных функций по соблюдению владельцами транспортных средств установленных требований по параметрам перевозок (режим труда и отдыха водителей, скоростной режим движения и др.) с применением цифровых тахографов» | C25: 7000 | D25: 4662.7 | M25: 0 | O25: 4662.7
B29: Руководитель | C29: Заместитель директора Департамента государственной политики в области автомобильного и городского пассажирского транспорта | N29: В.В. Луговенко
C30: (Должность) | I30: Подпись | N30: (Ф.И.О.)
B32: Исполнитель | C32: Главный специалист-эксперт | N32: В.В. Коптев
C33: (Должность) | I33: Подпись | N33: (Ф.И.О.)
N34: koptevvv@mintrans.ru
N35: (адрес электронной почты)

Sheet Подписанты (hidden)
B1: Руководитель
C2: (Должность) | I2: Подпись | N2: (Ф.И.О.)
B3: Исполнитель
C4: (Должность) | I4: Подпись | N4: (Ф.И.О.)
N6: (адрес электронной почты)
N8: (контактный телефон)
